{"text_format":"1","workbook":"xlsx","n_sheets":1,"sheets":["問題"],"not_rendered":{"charts":0,"images":0,"macros":1,"external_links":0,"defined_names":3,"comments":0,"pivot_tables":0},"unopened":[],"bounds":{"document_bytes":16777216,"sheet_cells":100000,"rows_first":2000,"rows_last":500,"rows_between":2000,"halvings":0,"cell_chars":16384,"cell_head_chars":4096},"cells_cut":0,"cells_raw":0,"read":"whole","date_system":"1900"}

{"sheet":"問題","index":0,"n_rows":17,"n_cols":256,"rows_kept":17,"cut":false,"hidden":false,"merged":[[6,10,6,12],[6,8,6,9],[4,8,4,10],[5,8,5,9],[5,10,5,12]]}
[null,null,null,null,null,null,null,null,null,null,null,null,null,null,null,null,null,null,null,null,null,null,null,null,null,null,null,null,null,null,null,null,null,null,null,null,null,null,null,null,null,null,null,null,null,null,null,null,null,null,null,null,null,null,null,null,null,null,null,null,null,null,null,null,null,null,null,null,null,null,null,null,null,null,null,null,null,null,null,null,null,null,null,null,null,null,null,null,null,null,null,null,null,null,null,null,null,null,null,null,null,null,null,null,null,null,null,null,null,null,null,null,null,null,null,null,null,null,null,null,null,null,null,null,null,null,null,null,null,null,null,null,null,null,null,null,null,null,null,null,null,null,null,null,null,null,null,null,null,null,null,null,null,null,null,null,null,null,null,null,null,null,null,null,null,null,null,null,null,null,null,null,null,null,null,null,null,null,null,null,null,null,null,null,null,null,null,null,null,null,null,null,null,null,null,null,null,null,null,null,null,null,null,null,null,null,null,null,null,null,null,null,null,null,null,null,null,null,null,null,null,null,null,null,null,null,null,null,null,null,null,null,null,null,null,null,null,null,null,null,null,null,null,null,null,null,null,null,null,null,null,null,null,null,null,"2018-10-15T17:38:38"]
[]
[null,"＋",{"$f":"RANK($O3,$O3:$W3)","v":4},{"$f":"RANK($P3,$O3:$W3)","v":5},{"$f":"RANK($Q3,$O3:$W3)","v":3},null,null,null,null,null,null,null,null,null,{"$f":"RAND()","v":0.48911787813928387},0.33928827209120394,0.68765475714280067,0.89211579380476702,0.14205216413478028,0.14669595766505705,4.6433604427312258E-2,0.29781631739868919,0.97378054040781648]
[null,{"$f":"RANK($N4,$N$4:$N$12)","v":9},null,null,null,null,null,null,null,null,null,null,null,{"$f":"RAND()","v":6.3907593689738307E-2},{"$f":"IF(ISBLANK(C4),0,IF(C4=O$15,1,0))","v":0},{"$f":"IF(ISBLANK(D4),0,IF(D4=P$15,1,0))","v":0},{"$f":"IF(ISBLANK(E4),0,IF(E4=Q$15,1,0))","v":0}]
[null,{"$f":"RANK($N5,$N$4:$N$12)","v":7},null,null,null,null,null,null,"けっか",null,null,null,null,0.40228034868830675,{"$f":"IF(ISBLANK(C5),0,IF(C5=O$16,1,0))","v":0},{"$f":"IF(ISBLANK(D5),0,IF(D5=P$16,1,0))","v":0},{"$f":"IF(ISBLANK(E5),0,IF(E5=Q$16,1,0))","v":0}]
[null,{"$f":"RANK($N6,$N$4:$N$12)","v":6},null,null,null,null,null,null,"てんすう",null,{"$f":"IF(SUM(O4:Q6)=0,0,SUM(O4:Q6)*11+1)","v":0},null,null,0.41762764914173567,{"$f":"IF(ISBLANK(C6),0,IF(C6=O$17,1,0))","v":0},{"$f":"IF(ISBLANK(D6),0,IF(D6=P$17,1,0))","v":0},{"$f":"IF(ISBLANK(E6),0,IF(E6=Q$17,1,0))","v":0}]
[null,null,null,null,null,null,null,null,"じかん",null,"00:00:00",null,null,0.63114363050267952]
[null,null,null,null,null,null,null,null,null,null,null,null,null,0.44655519591807347]
[null,null,null,null,null,null,null,null,null,null,null,null,null,0.56226631819507777]
[null,null,null,null,null,null,null,null,null,null,null,null,null,0.89883160266468221]
[null,null,null,null,null,null,null,null,null,null,null,null,null,0.92646556047280781]
[null,null,null,null,null,null,null,null,null,null,null,null,null,0.36846302395671526]
[]
[null,null,null,null,null,null,null,null,null,null,null,null,null,null,{"$f":"問題!C3","v":4},{"$f":"問題!D3","v":5},{"$f":"問題!E3","v":3}]
[null,null,null,null,null,null,null,null,null,null,null,null,null,{"$f":"問題!B4","v":9},{"$f":"O14+$N15","v":13},{"$f":"P14+$N15","v":14},{"$f":"Q14+$N15","v":12}]
[null,null,null,null,null,null,null,null,null,null,null,null,null,{"$f":"問題!B5","v":7},{"$f":"O14+$N16","v":11},{"$f":"P14+$N16","v":12},{"$f":"Q14+$N16","v":10}]
[null,null,null,null,null,null,null,null,null,null,null,null,null,{"$f":"問題!B6","v":6},{"$f":"O14+$N17","v":10},{"$f":"P14+$N17","v":11},{"$f":"Q14+$N17","v":9}]